bitfinex/quotes_BTCUSD_20251215
["timestamp","ask_amount","ask_price","bid_price","bid_amount"]
[1765789406796,0.001,89927.0,89926.0,0.01112025]
[1765789407171,0.01111988,89929.0,89926.0,0.01112025]
[1765789407610,0.001,89928.0,89925.0,0.05095968]
[1765789408871,0.01111988,89929.0,89925.0,0.05095968]
[1765789409272,0.01311988,89929.0,89925.0,0.05095968]
[1765789409493,0.01311988,89929.0,89926.0,0.01112025]
[1765789409688,0.01111975,89930.0,89926.0,0.01112025]
[1765789410115,0.002,89929.0,89926.0,0.02352025]
[1765789410578,0.01111975,89930.0,89926.0,0.02352025]
[1765789410976,0.01311975,89930.0,89926.0,0.01112025]
[1765789411385,0.00084064,89927.0,89926.0,0.01112025]
[1765789411618,0.00084064,89927.0,89925.0,0.03983931]
[1765789411804,0.01112,89928.0,89925.0,0.03983931]
[1765789412013,0.00081062,89926.0,89925.0,0.03983931]
[1765789413048,0.00181062,89926.0,89925.0,0.03983931]
[1765789413266,0.00181062,89926.0,89924.0,0.0111205]
[1765789413477,0.001,89926.0,89924.0,0.0111205]
[1765789413882,0.00078061,89925.0,89924.0,0.0111205]
[1765789416097,0.00078061,89925.0,89924.0,0.0518305]
[1765789416717,0.00178061,89925.0,89924.0,0.0518305]
[1765789417532,0.00178061,89925.0,89924.0,0.0275105]
[1765789417941,0.00178061,89925.0,89924.0,0.0518305]
[1765789421310,0.00178061,89925.0,89924.0,0.0275105]
[1765789421714,0.00178061,89925.0,89924.0,0.01639]
[1765789422541,0.11302064,89925.0,89924.0,0.01639]
[1765789424177,0.00178061,89925.0,89924.0,0.04071]
[1765789427518,0.00178061,89925.0,89924.0,0.26312003]
[1765789428327,0.00178061,89925.0,89924.0,0.10208184]
[1765789428695,0.00178061,89925.0,89924.0,0.32449187]
[1765789428903,0.00178061,89925.0,89924.0,0.10208184]
[1765789430716,0.00178061,89925.0,89924.0,0.12432284]
[1765789432321,0.00178061,89925.0,89924.0,0.06456387]
[1765789433701,0.00178061,89925.0,89924.0,0.04232287]
[1765789434730,0.00178061,89925.0,89924.0,0.06456387]
[1765789438161,0.00178061,89925.0,89924.0,0.21571284]
[1765789441815,0.00178061,89925.0,89924.0,0.32693513]
[1765789442079,0.00178061,89925.0,89924.0,0.22112355]
[1765789442253,0.00178061,89925.0,89924.0,0.13214226]
[1765789443284,0.00178061,89925.0,89924.0,0.21194934]
[1765789445282,0.00178061,89925.0,89924.0,0.13214226]
[1765789446109,0.00178061,89925.0,89924.0,0.51182355]
[1765789446512,0.00034737,89925.0,89924.0,0.53545304]
[1765789447344,0.00034737,89925.0,89924.0,0.68385304]
[1765789451143,0.00025977,89941.0,89940.0,0.38361114]
[1765789451480,0.00025977,89941.0,89940.0,0.41928401]
[1765789451698,0.00025977,89941.0,89940.0,0.44418401]
[1765789453143,0.00025977,89941.0,89940.0,0.50389951]
[1765789453382,0.00125977,89941.0,89940.0,0.50389951]
[1765789456815,0.00173999,89941.0,89940.0,0.50389951]
[1765789458137,0.00173999,89941.0,89940.0,0.44418401]
[1765789458549,0.00173999,89941.0,89940.0,0.50389951]
[1765789458700,0.00173999,89941.0,89940.0,0.44418401]
[1765789459846,0.00173999,89941.0,89940.0,0.59258401]
[1765789462286,0.00173999,89941.0,89940.0,0.65229951]
[1765789463453,0.00173999,89941.0,89940.0,0.59258401]
[1765789469025,0.00173999,89941.0,89940.0,0.67222498]
[1765789469229,0.00173999,89941.0,89940.0,0.59258401]
[1765789470048,0.00173999,89941.0,89940.0,0.77206172]
[1765789470254,0.0002,89945.0,89944.0,0.51306057]
[1765789470465,0.00058338,89945.0,89944.0,0.79151598]
[1765789470680,0.00058338,89945.0,89944.0,0.71475412]
[1765789472209,0.00058338,89945.0,89944.0,0.72475412]
[1765789472645,0.00058338,89945.0,89944.0,0.72375412]
[1765789473147,0.00058338,89945.0,89944.0,0.73475412]
[1765789473790,0.00058338,89945.0,89944.0,0.88315412]
[1765789477160,3.38e-06,89945.0,89944.0,0.88315412]
[1765789477324,0.00024006,89949.0,89948.0,0.22235069]
[1765789477557,0.00024006,89949.0,89948.0,0.6920089]
[1765789477757,0.00024006,89949.0,89948.0,0.60363661]
[1765789477969,0.00024006,89949.0,89948.0,0.7193097]
[1765789478166,0.00024006,89949.0,89948.0,0.60808741]
[1765789478526,0.00024006,89949.0,89948.0,0.61808741]
[1765789478746,0.00024006,89949.0,89948.0,0.62608741]
[1765789480258,0.00024006,89949.0,89948.0,0.7373097]
[1765789480486,0.00024006,89949.0,89948.0,0.62608741]
[1765789481043,0.00024006,89949.0,89948.0,0.7373097]
[1765789481175,0.00024006,89949.0,89948.0,0.62608741]
[1765789482565,0.00024006,89949.0,89948.0,0.7373097]
[1765789483521,0.00024006,89949.0,89948.0,0.62608741]
[1765789483756,0.00024006,89949.0,89948.0,0.8857097]
[1765789483933,0.00024006,89949.0,89948.0,0.77448741]
[1765789484513,0.00024006,89949.0,89948.0,0.8857097]
[1765789486697,0.00024006,89949.0,89948.0,0.77448741]
[1765789487122,0.00024006,89949.0,89948.0,0.8857097]
[1765789487535,6e-08,89949.0,89948.0,0.8857097]
[1765789488002,0.0002,89952.0,89951.0,0.67428395]
[1765789488130,0.0002,89961.0,89959.0,0.67426418]
[1765789488340,0.0002,89961.0,89959.0,0.84026705]
[1765789488597,0.0002,89961.0,89959.0,0.86311705]
[1765789488719,0.0002,89961.0,89959.0,0.86756728]
[1765789489127,0.0002,89961.0,89960.0,0.34071839]
[1765789489365,0.0002,89961.0,89960.0,0.49239355]
[1765789490178,0.0002,89961.0,89960.0,0.38117126]
[1765789490363,0.0002,89961.0,89960.0,0.49239355]
[1765789490563,0.0002,89961.0,89960.0,0.21925355]
[1765789491600,0.0002,89961.0,89960.0,0.23625355]
[1765789492422,0.0002,89961.0,89960.0,0.23621355]
[1765789492685,0.0002,89961.0,89960.0,0.38461355]
[1765789497341,0.0002,89961.0,89960.0,0.38906406]
[1765789497976,0.00056004,89961.0,89960.0,0.38906406]
[1765789498303,0.00056004,89961.0,89960.0,0.37154406]
[1765789498905,0.00056004,89961.0,89960.0,0.05584]
[1765789499401,0.00056004,89961.0,89960.0,0.16706229]
[1765789499600,0.00056004,89961.0,89960.0,0.15806229]
[1765789499807,0.00056004,89961.0,89960.0,0.20808068]
[1765789499986,0.00056004,89961.0,89960.0,0.21608068]
[1765789500372,0.00056004,89961.0,89960.0,0.20808068]
[1765789500770,0.00056004,89961.0,89960.0,0.21408068]
[1765789501392,0.00056004,89961.0,89960.0,0.23160068]
[1765789501732,0.00056004,89961.0,89960.0,0.23321355]
[1765789501934,0.00056004,89961.0,89960.0,0.21569355]
[1765789502143,0.00056004,89961.0,89960.0,0.43801458]
[1765789506433,0.00056004,89961.0,89960.0,0.42401458]
[1765789506858,0.00056004,89961.0,89960.0,0.43101458]
[1765789507088,0.00056004,89961.0,89960.0,0.43901458]
[1765789510519,0.00056004,89961.0,89960.0,0.58741458]
[1765789514223,0.00056004,89961.0,89960.0,0.87811458]
[1765789514483,0.00056004,89961.0,89960.0,0.97749133]
[1765789514611,0.00056004,89961.0,89960.0,0.97049133]
[1765789515437,0.00056004,89961.0,89960.0,0.98049133]
[1765789516308,0.00056004,89961.0,89960.0,0.97249133]
[1765789516667,0.00011716,89961.0,89960.0,0.98049133]
[1765789516873,0.00011716,89961.0,89960.0,0.88111458]
[1765789517486,0.00011716,89961.0,89960.0,0.87311458]
[1765789517658,0.00011716,89961.0,89960.0,0.88111458]
[1765789518060,0.00011716,89961.0,89960.0,0.98822843]
[1765789518260,0.00011716,89961.0,89960.0,0.97070843]
[1765789518463,0.00011716,89961.0,89960.0,0.99722843]
[1765789519600,0.00011716,89961.0,89960.0,0.89763458]
[1765789519980,0.00011716,89961.0,89960.0,0.4281739]
[1765789520183,0.00011716,89961.0,89960.0,0.4456939]
[1765789520413,0.00011716,89961.0,89960.0,0.20690287]
[1765789520776,0.00011716,89961.0,89960.0,0.25692126]
[1765789520923,0.00011716,89961.0,89960.0,0.24892126]
[1765789521531,0.00011716,89961.0,89960.0,0.24592126]
[1765789521692,0.00011716,89961.0,89960.0,0.25592126]
[1765789522186,0.00011716,89961.0,89960.0,0.09752126]
[1765789522338,0.00011716,89961.0,89960.0,0.10552126]
[1765789522534,0.00011716,89961.0,89960.0,0.18909184]
[1765789526530,0.00011716,89961.0,89960.0,0.20661184]
[1765789528599,0.00011716,89961.0,89960.0,0.09914126]
[1765789529036,0.23333572,89961.0,89960.0,0.014]
[1765789529248,0.24423572,89961.0,89960.0,0.014]
[1765789529450,0.53493572,89961.0,89960.0,0.014]
[1765789530049,0.53493572,89961.0,89960.0,0.008]
[1765789530497,0.01111666,89955.0,89952.0,0.01111704]
[1765789530700,0.01111666,89955.0,89951.0,0.02988839]
[1765789530926,0.01111666,89955.0,89952.0,0.01111704]
[1765789531382,0.02201642,89957.0,89954.0,0.01111679]
[1765789531881,0.01111654,89956.0,89953.0,0.01111691]
[1765789532079,0.01111666,89955.0,89952.0,0.01111704]
[1765789532285,0.01111654,89956.0,89952.0,0.01111704]
[1765789533135,0.01111654,89956.0,89953.0,0.01111691]
[1765789533343,0.0109,89957.0,89954.0,0.23345265]
[1765789533702,0.0109,89957.0,89954.0,0.01111679]
[1765789534303,0.01111654,89956.0,89953.0,0.01111691]
[1765789534944,0.02201654,89956.0,89953.0,0.01111691]
[1765789535436,0.02201654,89956.0,89948.0,0.00011466]
[1765789535437,0.33358824,89949.0,89948.0,0.00011466]
[1765789535606,0.01111938,89933.0,89929.0,0.02986991]
[1765789535811,0.01111975,89930.0,89929.0,0.00038338]
[1765789536121,0.02201975,89930.0,89929.0,0.00038338]
[1765789536478,0.03291975,89930.0,89929.0,0.00038338]
[1765789537232,0.01111938,89933.0,89929.0,0.00038338]
[1765789537440,0.2907,89936.0,89932.0,0.01602]
[1765789537639,0.2907,89936.0,89933.0,0.01111938]
[1765789537816,0.2907,89936.0,89934.0,0.2223853]
[1765789538020,0.2907,89936.0,89933.0,0.01111938]
[1765789538610,0.2907,89937.0,89934.0,0.01111926]
[1765789539586,0.2907,89937.0,89934.0,0.23350448]
[1765789540332,0.002,89936.0,89934.0,0.2335042]
[1765789540741,0.0109,89941.0,89938.0,0.01111877]
[1765789540870,0.0111179,89945.0,89941.0,0.01111839]
[1765789541080,0.01111827,89942.0,89939.0,0.01111864]
[1765789541287,0.30181815,89943.0,89939.0,0.01111864]
[1765789541479,0.30181815,89943.0,89940.0,0.01111852]
[1765789541917,0.002,89941.0,89940.0,0.01111852]
[1765789542333,0.002,89941.0,89939.0,0.01111864]
[1765789542530,0.01311839,89941.0,89936.0,0.23349658]
[1765789543156,0.01111839,89941.0,89936.0,0.23349658]
[1765789543506,0.01111852,89940.0,89937.0,0.01111889]
[1765789544986,0.30181802,89944.0,89938.0,0.23349418]
[1765789545212,0.002,89940.0,89939.0,0.01111864]
[1765789546687,0.01111827,89942.0,89939.0,0.01111864]
[1765789546887,0.01111827,89942.0,89938.0,0.01111877]
[1765789547533,0.23348578,89942.0,89938.0,0.01111877]
[1765789547729,0.002,89940.0,89938.0,0.01111877]
[1765789548443,0.01111815,89943.0,89940.0,0.01111852]
[1765789548649,0.23648379,89942.0,89938.0,0.01111877]
[1765789549038,0.01411827,89942.0,89938.0,0.01111877]
[1765789549221,0.23648409,89942.0,89938.0,0.01111877]
[1765789549737,0.003,89942.0,89939.0,0.01111864]
[1765789550066,0.01111827,89942.0,89939.0,0.01111864]
[1765789550205,0.002,89940.0,89939.0,0.23349108]
[1765789550606,0.002,89940.0,89938.0,0.01111877]
[1765789550809,0.01111839,89941.0,89937.0,0.01111889]
[1765789551031,0.23348808,89941.0,89937.0,0.01111889]
[1765789551261,0.01111839,89941.0,89938.0,0.01111877]
[1765789551591,0.01411827,89942.0,89938.0,0.01111877]
[1765789551817,0.01111827,89942.0,89938.0,0.01111877]
[1765789552022,0.2907,89943.0,89939.0,0.23349158]
[1765789552542,0.30181815,89943.0,89940.0,0.01111852]
[1765789553007,0.22234748,89950.0,89945.0,0.0111179]
[1765789553173,0.01111741,89949.0,89945.0,0.0111179]
[1765789553359,0.01111741,89949.0,89945.0,0.0342579]
[1765789553559,0.01111741,89949.0,89945.0,0.0111179]
[1765789553991,0.01111765,89947.0,89944.0,0.02332802]
[1765789554900,0.01111753,89948.0,89945.0,0.0111179]
[1765789555721,0.01211741,89949.0,89946.0,0.23347341]
[1765789555919,0.01211741,89949.0,89946.0,0.01111778]
[1765789556160,0.01111741,89949.0,89946.0,0.01111778]
[1765789556316,0.001,89947.0,89946.0,0.01111778]
[1765789556840,0.01111741,89949.0,89946.0,0.01111778]
[1765789557039,0.01111728,89950.0,89946.0,0.01111778]
[1765789557040,0.01111728,89950.0,89947.0,0.01111765]
[1765789557223,0.001,89949.0,89947.0,0.01111765]
[1765789558020,0.01111728,89950.0,89947.0,0.01111765]
[1765789558457,0.01111728,89950.0,89946.0,0.23347144]
[1765789558656,0.01111728,89950.0,89947.0,0.01111765]
[1765789558854,0.01111741,89949.0,89946.0,0.01111778]
[1765789559862,0.31271691,89953.0,89948.0,0.23346617]
[1765789560064,0.001,89949.0,89948.0,0.23346617]
[1765789560319,0.001,89949.0,89948.0,0.01111753]
[1765789560820,0.01111716,89951.0,89948.0,0.01111753]
[1765789560979,0.31271691,89953.0,89949.0,0.01111741]
[1765789561182,0.01111704,89952.0,89949.0,0.01111741]
[1765789561854,0.01111704,89952.0,89946.0,0.01111778]
[1765789561855,0.01111716,89951.0,89946.0,0.01111778]
[1765789562252,0.01111716,89951.0,89945.0,0.0111179]
[1765789562253,0.23346936,89948.0,89945.0,0.0111179]
[1765789562608,0.01111741,89949.0,89946.0,0.01111778]
[1765789563009,0.23346513,89950.0,89946.0,0.23347253]
[1765789563220,0.01111728,89950.0,89947.0,0.01111765]
[1765789563641,0.01111741,89949.0,89946.0,0.01111778]
[1765789563999,0.01111728,89950.0,89946.0,0.23347123]
[1765789564000,0.001,89948.0,89946.0,0.23347123]
[1765789565634,0.01111741,89949.0,89945.0,0.0111179]
[1765789565898,0.01211741,89949.0,89945.0,0.0111179]
[1765789566101,0.01211741,89949.0,89946.0,0.01111778]
[1765789566724,0.01111741,89949.0,89946.0,0.01111778]
[1765789567551,0.01211741,89949.0,89946.0,0.01111778]
[1765789568918,0.01111728,89950.0,89946.0,0.01111778]
[1765789569126,0.001,89949.0,89946.0,0.01111778]
[1765789569654,0.01111741,89949.0,89946.0,0.01111778]
[1765789570082,0.01111753,89948.0,89945.0,0.02988277]
[1765789570283,0.22235316,89947.0,89945.0,0.02988277]
[1765789570487,0.22235316,89947.0,89940.0,0.00161287]
[1765789570488,0.22236552,89942.0,89940.0,0.00161287]
[1765789571275,0.23348233,89943.0,89940.0,0.00161287]
[1765789571500,0.22236799,89941.0,89940.0,0.00161287]
[1765789571709,0.23348233,89943.0,89940.0,0.00161287]
[1765789571864,0.22237294,89939.0,89938.0,0.03985946]
[1765789572070,0.23327294,89939.0,89937.0,0.03985946]
[1765789572311,0.24439158,89939.0,89937.0,0.03985946]
[1765789573391,0.02201864,89939.0,89937.0,0.03985946]
[1765789573587,0.24439234,89939.0,89937.0,0.04585946]
[1765789573788,0.23349234,89939.0,89937.0,0.05385946]
[1765789573993,0.23349234,89939.0,89937.0,0.04785946]
[1765789575052,0.23349234,89939.0,89937.0,0.03985946]
[1765789575445,0.23549234,89939.0,89937.0,0.03985946]
[1765789577238,0.0109,89938.0,89937.0,0.03985946]
[1765789578381,0.22237351,89939.0,89937.0,0.03985946]
[1765789578524,0.002,89938.0,89937.0,0.03985946]
[1765789579260,0.22237351,89939.0,89937.0,0.03985946]
[1765789579583,0.22237351,89939.0,87221.0,4.02e-05]
[1765789579584,0.22237788,89937.0,89936.0,0.02994224]
[1765789579773,0.0109,89932.0,89931.0,0.02994224]
[1765789579977,0.24419025,89932.0,89930.0,0.02994224]
[1765789580157,0.0218,89931.0,89930.0,0.02994224]
[1765789580356,0.0218,89931.0,89929.0,0.00038338]
[1765789580357,0.22239519,89930.0,89929.0,0.03032562]
[1765789581376,0.22239519,89930.0,89929.0,0.00038338]
[1765789582472,0.22339519,89930.0,89929.0,0.00038338]
[1765789582930,0.23429519,89930.0,89929.0,0.00038338]
[1765789587154,0.001,89930.0,89929.0,0.00038338]
[1765789587353,0.001,89930.0,89929.0,0.04035338]
[1765789587613,0.001,89930.0,89929.0,0.01590338]
[1765789588177,0.001,89930.0,89929.0,0.00038338]
[1765789591971,0.001,89930.0,89929.0,0.02366338]
[1765789592205,0.001,89930.0,89929.0,0.05360562]
[1765789592997,0.001,89930.0,89929.0,0.06903562]
[1765789593226,0.001,89930.0,89929.0,0.07064849]
[1765789593433,0.001,89930.0,89929.0,0.04070625]
[1765789593953,0.001,89930.0,89929.0,0.15192854]
[1765789594480,0.001,89930.0,89929.0,0.04070625]
[1765789595940,0.001,89930.0,89929.0,0.09072464]
[1765789596152,0.001,89930.0,89929.0,0.20194693]
[1765789596280,0.001,89930.0,89929.0,0.22418669]
[1765789597141,0.0109,89945.0,89942.0,0.22236382]
[1765789597541,0.0109,89945.0,89943.0,0.22236111]
[1765789597761,0.30181704,89952.0,89943.0,0.22236111]
[1765789597762,0.22235252,89948.0,89944.0,0.01543]
[1765789597959,0.0111179,89945.0,89941.0,0.02312839]
[1765789598165,0.0111179,89945.0,89940.0,0.2633886]
[1765789598367,0.0109,89944.0,89940.0,0.2633886]
[1765789598569,0.02201802,89944.0,89941.0,0.01111839]
[1765789599130,0.01111802,89944.0,89941.0,0.01111839]
[1765789599517,0.23547763,89945.0,89942.0,0.01111827]
[1765789599720,0.002,89945.0,89942.0,0.23348215]
[1765789600428,0.01111753,89948.0,89945.0,0.0111179]
[1765789600629,0.01111753,89948.0,89943.0,0.03439815]
[1765789600814,0.002,89944.0,89943.0,0.03439815]
[1765789601035,0.002,89944.0,89943.0,0.01111815]
[1765789601242,0.01111765,89947.0,89943.0,0.01111815]
[1765789601672,0.01111778,89946.0,89943.0,0.01111815]
[1765789602092,0.01111753,89948.0,89943.0,0.01111815]
[1765789602309,0.22234628,89950.0,89946.0,0.01111778]
[1765789602511,0.002,89947.0,89946.0,0.01111778]
[1765789602708,0.002,89947.0,89945.0,0.0111179]
[1765789603643,0.01111765,89947.0,89942.0,0.23348268]
[1765789603840,0.01111765,89947.0,89944.0,0.01111802]
[1765789604080,0.01311753,89948.0,89945.0,0.233476]
[1765789604552,0.01111753,89948.0,89945.0,0.233476]
[1765789604747,0.01111741,89949.0,89945.0,0.233476]
[1765789604926,0.002,89947.0,89945.0,0.233476]
[1765789605381,0.01111666,89955.0,89950.0,0.01111728]
[1765789605596,0.01111642,89957.0,89952.0,0.01111704]
[1765789605774,0.01111642,89957.0,89951.0,0.01201]
[1765789605775,0.01111679,89954.0,89951.0,0.01201]
[1765789606223,0.01111691,89953.0,89950.0,0.01111728]
[1765789606428,0.01111691,89953.0,89949.0,0.01111741]
[1765789606641,0.23345784,89952.0,89948.0,0.0298891]
[1765789606849,0.01111716,89951.0,89948.0,0.04100663]
[1765789607055,0.01111704,89952.0,89949.0,0.01111741]
[1765789607670,0.23345981,89952.0,89948.0,0.01111753]
[1765789607873,0.01111704,89952.0,89949.0,0.01111741]
[1765789608258,0.01111716,89951.0,89948.0,0.01111753]
[1765789610049,0.01111716,89951.0,89947.0,0.23346894]
[1765789610588,0.01211716,89951.0,89947.0,0.23346894]
[1765789610795,0.01211716,89951.0,89947.0,0.25674894]
[1765789610999,0.01111716,89951.0,89947.0,0.25674894]
[1765789611218,0.01111704,89952.0,89949.0,0.01111741]
[1765789611507,0.001,89951.0,89948.0,0.01111753]
[1765789611658,0.001,89951.0,89948.0,0.23346591]
[1765789612102,0.01111704,89952.0,89948.0,0.01111753]
[1765789612300,0.23346043,89951.0,89948.0,0.01111753]
[1765789612832,0.01111716,89951.0,89947.0,0.01111765]
[1765789613031,0.01111716,89951.0,89948.0,0.01111753]
[1765789614224,0.01211716,89951.0,89948.0,0.01111753]
[1765789614425,0.001,89951.0,89948.0,0.23346613]
[1765789614996,0.001,89951.0,89950.0,0.482587]
[1765789615200,0.001,89951.0,89950.0,0.48419987]
[1765789615410,0.001,89951.0,89950.0,0.50747987]
[1765789615756,0.001,89951.0,89950.0,0.48361154]
[1765789616389,0.01131518,89967.0,89964.0,0.22231114]
[1765789616569,0.0002,89967.0,89964.0,0.22231114]
[1765789617156,0.01131518,89967.0,89964.0,0.22231114]
[1765789617553,0.01131518,89967.0,89964.0,0.22242584]
[1765789617759,0.00223716,89965.0,89964.0,0.22242584]
[1765789618212,0.00223716,89965.0,89964.0,0.23786584]
[1765789618419,0.00223716,89965.0,89964.0,0.24689584]
[1765789618615,0.00223716,89965.0,89964.0,0.26233584]
[1765789621491,0.00223716,89965.0,89964.0,0.3139671]
[1765789622445,0.00023716,89965.0,89964.0,0.05174596]
[1765789622651,0.00023716,89965.0,89964.0,0.05774596]
[1765789622832,0.00023716,89965.0,89964.0,0.06574596]
[1765789623036,0.00023716,89965.0,89964.0,0.0141147]
[1765789623483,0.00023716,89965.0,89964.0,0.0001147]
[1765789623884,0.00123716,89965.0,89964.0,0.0001147]
[1765789625806,0.22354583,89965.0,89964.0,0.0001147]
[1765789626007,0.00123716,89965.0,89964.0,0.0001147]
[1765789627141,0.00123716,89965.0,89964.0,0.22242584]
[1765789627346,0.00123716,89965.0,89964.0,0.3139671]
[1765789627593,0.00123716,89965.0,89964.0,0.44274939]
[1765789628149,0.00123716,89965.0,89964.0,0.59114939]
[1765789629112,0.00023716,89965.0,89964.0,0.59114939]
[1765789629489,0.00123716,89965.0,89964.0,0.59814939]
[1765789629873,0.00023716,89965.0,89964.0,0.59814939]
[1765789630083,0.00023716,89965.0,89964.0,0.4869271]
[1765789630426,0.00023716,89965.0,89964.0,0.60814939]
[1765789641194,0.00023716,89965.0,89964.0,0.4793671]
[1765789641431,0.00023716,89965.0,89964.0,0.20012757]
[1765789641605,0.00023716,89965.0,89964.0,0.23258596]
[1765789641744,0.00023716,89965.0,89964.0,0.25705596]
[1765789641946,0.00023716,89965.0,89964.0,0.24705596]
[1765789642175,0.00023716,89965.0,89964.0,0.24805596]
[1765789642582,0.00023716,89965.0,89964.0,0.25405596]
[1765789642994,0.00023716,89965.0,89964.0,0.2024247]
[1765789643198,0.00023716,89965.0,89964.0,0.21253309]
[1765789644089,0.00023716,89965.0,89964.0,0.0141147]
[1765789644401,0.00023716,89965.0,89964.0,0.0081147]
[1765789644832,0.00023716,89965.0,89964.0,0.0001147]
[1765789645212,0.00123716,89965.0,89964.0,0.0001147]
[1765789648462,0.02303716,89965.0,89964.0,0.0001147]
[1765789648834,0.49845806,89965.0,89964.0,0.0001147]
[1765789649039,0.49845806,89965.0,89942.0,0.01111827]
[1765789649040,0.01111679,89954.0,89951.0,0.02983252]
[1765789649245,0.23347081,89947.0,89944.0,0.02983252]
[1765789649455,0.22236552,89942.0,89941.0,0.02983252]
[1765789649679,0.01111802,89944.0,89941.0,0.0299474]
[1765789649905,0.02201778,89946.0,89943.0,0.02985358]
[1765789650131,0.02201778,89946.0,89943.0,0.04097173]
[1765789650132,0.0109,89946.0,89943.0,0.04097173]
[1765789650335,0.0109,89946.0,89943.0,0.01111815]
[1765789650535,0.0109,89946.0,89944.0,0.22236057]
[1765789652055,0.0119,89946.0,89944.0,0.22236057]
[1765789654777,0.001,89946.0,89945.0,0.05245]
[1765789654975,0.001,89946.0,89945.0,0.05406287]
[1765789655543,0.0109,89955.0,89952.0,0.01111704]
[1765789656035,0.01111654,89956.0,89953.0,0.01111691]
[1765789656162,0.01111642,89957.0,89954.0,0.23345259]
[1765789656364,0.01111642,89957.0,89954.0,0.01111679]
[1765789656568,0.01111629,89958.0,89955.0,0.01111666]
[1765789656989,0.54169951,89960.0,89955.0,0.01111666]
[1765789656990,0.01111617,89959.0,89955.0,0.01111666]
[1765789657240,0.01111629,89958.0,89954.0,0.23345194]
[1765789657423,0.01111642,89957.0,89950.0,0.01111728]
[1765789657624,0.01111679,89954.0,89950.0,0.01111728]
[1765789657886,0.01111691,89953.0,89950.0,0.01111728]
[1765789658079,0.01111679,89954.0,89951.0,0.2334596]
[1765789658236,0.01111679,89954.0,89951.0,0.01111716]
[1765789658434,0.01111666,89955.0,89952.0,0.01111704]
[1765789658609,0.01111654,89956.0,89953.0,0.01111691]
[1765789658808,0.2334495,89956.0,89952.0,0.01111704]
[1765789659309,0.01111654,89956.0,89953.0,0.01111691]
[1765789659517,0.01111617,89959.0,89954.0,0.01111679]
[1765789659723,0.01111629,89958.0,89953.0,0.01111691]
[1765789659955,0.01111642,89957.0,89953.0,0.01111691]
[1765789660296,0.01111642,89957.0,89954.0,0.01111679]
[1765789661215,0.01111617,89959.0,89955.0,0.23345004]
[1765789661417,0.001,89957.0,89955.0,0.01111666]
[1765789661634,0.001,89957.0,89955.0,0.23344975]
[1765789661787,0.01111617,89959.0,89955.0,0.23344975]
[1765789662212,0.001,89957.0,89955.0,0.23344975]
[1765789663522,0.01135259,89965.0,89960.0,0.23343703]
[1765789663718,0.00023716,89965.0,89962.0,0.0111158]
[1765789663932,0.00023716,89965.0,89964.0,0.01627]
[1765789664134,0.01135259,89965.0,89960.0,0.01111605]
[1765789664316,0.01135259,89965.0,89961.0,0.01111592]
[1765789664516,0.01111568,89963.0,89959.0,0.24510931]
[1765789664865,0.01111568,89963.0,89960.0,0.01111605]
[1765789665470,0.01111555,89964.0,89961.0,0.01111592]
[1765789666072,0.23342951,89963.0,89959.0,0.01111617]
[1765789666259,0.0111158,89962.0,89959.0,0.01111617]
[1765789666826,0.01111592,89961.0,89958.0,0.23344008]
[1765789667050,0.0111158,89962.0,89959.0,0.01111617]
[1765789667630,0.01311568,89963.0,89960.0,0.01111605]
[1765789667853,0.01111568,89963.0,89960.0,0.01111605]
[1765789668059,0.002,89961.0,89960.0,0.01111605]
[1765789668683,0.01111568,89963.0,89960.0,0.01111605]
[1765789669091,0.01311568,89963.0,89960.0,0.01111605]
[1765789669956,0.002,89963.0,89961.0,0.22231856]
[1765789670153,0.002,89963.0,89960.0,0.01111605]
[1765789670523,0.002,89963.0,89961.0,0.22231856]
[1765789670725,0.01111555,89964.0,89961.0,0.22231856]
[1765789670945,0.01111555,89964.0,89961.0,0.23343448]
[1765789671144,0.002,89963.0,89961.0,0.23343448]
[1765789671524,0.01135259,89965.0,89962.0,0.0111158]
[1765789672054,0.002,89964.0,89962.0,0.0111158]
[1765789673268,0.00023716,89965.0,89962.0,0.23343011]
[1765789673468,0.00023716,89965.0,89963.0,0.22231361]
[1765789673882,0.00023716,89965.0,89962.0,0.0111158]
[1765789674063,0.00323716,89965.0,89963.0,0.22231361]
[1765789674699,0.00023716,89965.0,89963.0,0.22231361]
[1765789675022,0.00323716,89965.0,89963.0,0.22231361]
[1765789675864,0.00323716,89965.0,89962.0,0.0111158]
[1765789676298,0.01111555,89964.0,89960.0,0.04096963]
[1765789676499,0.01111555,89964.0,89961.0,0.01111592]
[1765789677817,0.01311555,89964.0,89961.0,0.01111592]
[1765789680250,0.01311555,89964.0,89961.0,0.0409695]
[1765789682081,0.23542683,89964.0,89961.0,0.02985358]
[1765789682481,0.01311555,89964.0,89961.0,0.0409695]
[1765789683639,0.0109,89962.0,89959.0,0.02985358]
[1765789683855,0.2223235,89959.0,89958.0,0.02985358]
[1765789684083,0.01111629,89958.0,89955.0,0.03977014]
[1765789684355,0.01111629,89958.0,89955.0,0.0508868]
[1765789684512,0.01111617,89959.0,89956.0,0.2732172]
[1765789684715,0.23343488,89961.0,89957.0,0.01111642]
[1765789684915,0.23343488,89961.0,89960.0,0.02990749]
[1765789685128,0.23343488,89961.0,89957.0,0.01111642]
[1765789685854,0.002,89959.0,89957.0,0.01111642]
[1765789686362,0.01111605,89960.0,89957.0,0.01111642]
[1765789687662,0.01311605,89960.0,89957.0,0.01111642]
[1765789688855,0.24412826,89958.0,89956.0,0.03977014]
[1765789689056,0.24412826,89958.0,89946.0,0.03478]
[1765789689057,0.22233586,89954.0,89953.0,0.03977014]
[1765789689285,0.22233586,89954.0,89942.0,0.01111827]
[1765789689286,0.22235563,89946.0,89944.0,0.03977014]
[1765789689496,0.22236057,89944.0,89943.0,0.03977014]
[1765789689710,0.23347859,89944.0,89941.0,0.00011488]
[1765789690212,0.01111765,89947.0,89944.0,0.01111802]
[1765789690459,0.01111765,89947.0,89944.0,0.04103716]
[1765789690628,0.01111741,89949.0,89945.0,0.2223581]
[1765789691053,0.01111741,89949.0,89946.0,0.01111778]
[1765789691264,0.2907,89951.0,89948.0,0.01111753]
[1765789691600,0.33357553,89955.0,89951.0,0.01111716]
[1765789691601,0.01111666,89955.0,89951.0,0.01111716]
[1765789691802,0.01111642,89957.0,89954.0,0.01111679]
[1765789691973,0.23322798,89958.0,89955.0,0.01111666]
[1765789691974,0.02201629,89958.0,89955.0,0.01111666]
[1765789692159,0.0109,89958.0,89955.0,0.01111666]
[1765789692358,0.02201629,89958.0,89954.0,0.01111679]
[1765789692587,0.01111666,89955.0,89951.0,0.0410363]
[1765789692944,0.01111654,89956.0,89952.0,0.01111704]
[1765789693146,0.02201654,89956.0,89953.0,0.01111691]
[1765789693345,0.01111666,89955.0,89951.0,0.0410363]
[1765789693585,0.01111654,89956.0,89952.0,0.01111704]
[1765789693802,0.01111654,89956.0,89951.0,0.0410363]
[1765789694006,0.01111666,89955.0,89951.0,0.0410363]
[1765789694222,0.23345213,89955.0,89951.0,0.0410363]